[Event "NJSK 2023 Meisjes B"]
[Site "Almelo, Netherlands"]
[Date "2023.05.04"]
[Round "5.7"]
[White "De Bruijne, Marlies"]
[Black "Knobbe, Elise"]
[Result "0-1"]
[TimeControl "90min/40moves + 30min + 30sec/move"]
[WhiteElo "945"]
[BlackElo "1584"]

1. d4 {[%clk 01:30:59]} {[%emt 00:00:01]} f5 {[%clk 01:30:55]} {[%emt
00:00:06]} 2. c4 {[%clk 01:31:10]} {[%emt 00:00:20]} Nf6 {[%clk 01:31:12]}
{[%emt 00:00:11]} 3. Nf3 {[%clk 01:31:02]} {[%emt 00:00:38]} g6 {[%clk
01:31:23]} {[%emt 00:00:19]} 4. Nc3 {[%clk 01:30:57]} {[%emt 00:00:36]} Bg7
{[%clk 01:31:12]} {[%emt 00:00:40]} 5. Bf4 {[%clk 01:29:54]} {[%emt 00:01:33]}
O-O {[%clk 01:30:21]} {[%emt 00:01:20]} 6. e3 {[%clk 01:28:59]} {[%emt
00:01:25]} d6 {[%clk 01:28:19]} {[%emt 00:02:32]} 7. Bd3 {[%clk 01:25:03]}
{[%emt 00:04:26]} Nbd7 {[%clk 01:27:24]} {[%emt 00:01:25]} 8. O-O {[%clk
01:23:06]} {[%emt 00:02:28]} e6 {[%clk 01:26:04]} {[%emt 00:01:50]} 9. Qd2
{[%clk 01:17:29]} {[%emt 00:06:07]} b6 {[%clk 01:21:36]} {[%emt 00:04:58]} 10.
Rfe1 {[%clk 01:08:20]} {[%emt 00:09:39]} Bb7 {[%clk 01:17:32]} {[%emt
00:04:34]} 11. e4 {[%clk 01:04:40]} {[%emt 00:04:10]} e5 {[%clk 01:08:55]}
{[%emt 00:09:08]} 12. dxe5 {[%clk 01:01:14]} {[%emt 00:03:55]} dxe5 {[%clk
01:08:52]} {[%emt 00:00:33]} 13. Nxe5 {[%clk 00:59:21]} {[%emt 00:02:24]} Nxe5
{[%clk 01:08:45]} {[%emt 00:00:38]} 14. Bxe5 {[%clk 00:58:49]} {[%emt
00:01:01]} Nxe4 {[%clk 01:08:13]} {[%emt 00:01:01]} 15. Qe3 {[%clk 00:47:27]}
{[%emt 00:11:53]} Bxe5 {[%clk 01:06:52]} {[%emt 00:01:52]} 16. Nxe4 {[%clk
00:45:05]} {[%emt 00:02:52]} fxe4 {[%clk 01:04:37]} {[%emt 00:02:44]} 17. Bxe4
{[%clk 00:44:21]} {[%emt 00:01:14]} Bxe4 {[%clk 01:00:59]} {[%emt 00:04:09]} 18.
Qxe4 {[%clk 00:43:26]} {[%emt 00:01:24]} Qd4 {[%clk 00:58:49]} {[%emt
00:02:40]} 19. Qxe5 {[%clk 00:39:31]} {[%emt 00:04:25]} Qxf2+ {[%clk 00:57:22]}
{[%emt 00:01:57]} 20. Kh1 {[%clk 00:39:40]} {[%emt 00:00:21]} Rf7 {[%clk
00:55:13]} {[%emt 00:02:37]} 21. h3 {[%clk 00:35:32]} {[%emt 00:04:39]} Rd8
{[%clk 00:52:21]} {[%emt 00:03:22]} 22. Re2 {[%clk 00:31:17]} {[%emt 00:04:45]}
Qd4 {[%clk 00:49:51]} {[%emt 00:03:01]} 23. Qxd4 {[%clk 00:29:05]} {[%emt
00:02:42]} Rxd4 {[%clk 00:50:13]} {[%emt 00:00:07]} 24. b3 {[%clk 00:29:08]}
{[%emt 00:00:27]} Rfd7 {[%clk 00:49:04]} {[%emt 00:01:39]} 25. Kh2 {[%clk
00:26:59]} {[%emt 00:02:39]} Rd2 {[%clk 00:48:05]} {[%emt 00:01:29]} 26. Rxd2
{[%clk 00:26:34]} {[%emt 00:00:55]} Rxd2 {[%clk 00:48:26]} {[%emt 00:00:09]} 27.
a4 {[%clk 00:26:26]} {[%emt 00:00:38]} Rd3 {[%clk 00:47:22]} {[%emt 00:01:33]}
28. Rb1 {[%clk 00:25:21]} {[%emt 00:01:36]} Kf7 {[%clk 00:47:17]} {[%emt
00:00:35]} 29. Rf1+ {[%clk 00:24:27]} {[%emt 00:01:24]} Ke6 {[%clk 00:47:11]}
{[%emt 00:00:36]} 30. Rf3 {[%clk 00:24:16]} {[%emt 00:00:41]} Rxf3 {[%clk
00:38:54]} {[%emt 00:08:47]} 31. gxf3 {[%clk 00:24:43]} {[%emt 00:00:03]} Kf5
{[%clk 00:37:15]} {[%emt 00:02:09]} 32. Kg3 {[%clk 00:23:55]} {[%emt 00:01:17]}
g5 {[%clk 00:36:43]} {[%emt 00:01:02]} 33. b4 {[%clk 00:22:24]} {[%emt
00:02:01]} c5 {[%clk 00:35:34]} {[%emt 00:01:39]} 34. b5 {[%clk 00:20:32]}
{[%emt 00:02:22]} h5 {[%clk 00:34:30]} {[%emt 00:01:34]} 35. Kf2 {[%clk
00:14:35]} {[%emt 00:06:27]} Kf4 {[%clk 00:33:04]} {[%emt 00:01:57]} 36. Kg2
{[%clk 00:14:29]} {[%emt 00:00:36]} Ke3 {[%clk 00:31:42]} {[%emt 00:01:52]} 37.
Kg3 {[%clk 00:13:17]} {[%emt 00:01:42]} Kd4 {[%clk 00:30:09]} {[%emt 00:02:03]}
38. h4 {[%clk 00:11:02]} {[%emt 00:02:46]} gxh4+ {[%clk 00:29:36]} {[%emt
00:01:02]} 39. Kxh4 {[%clk 00:11:11]} {[%emt 00:00:21]} Ke3 {[%clk 00:29:31]}
{[%emt 00:00:35]} 40. Kxh5 {[%clk 00:06:57]} {[%emt 00:04:44]} Kxf3 {[%clk
00:29:26]} {[%emt 00:00:34]} 41. Kg5 {[%clk 00:07:18]} {[%emt 00:00:10]} Ke4
{[%clk 00:29:26]} {[%emt 00:00:30]} 42. Kf6 {[%clk 00:07:36]} {[%emt 00:00:12]}
Kd4 {[%clk 00:29:44]} {[%emt 00:00:12]} 43. Ke6 {[%clk 00:08:00]} {[%emt
00:00:06]} Kxc4 {[%clk 00:30:04]} {[%emt 00:00:11]} 44. Kd6 {[%clk 00:08:18]}
{[%emt 00:00:12]} Kb4 {[%clk 00:30:12]} {[%emt 00:00:22]} 45. Kc7 {[%clk
00:08:11]} {[%emt 00:00:37]} Kxa4 {[%clk 00:30:34]} {[%emt 00:00:08]} 46. Kb7
{[%clk 00:07:23]} {[%emt 00:01:18]} Kxb5 {[%clk 00:30:58]} {[%emt 00:00:06]} 47.
Kxa7 {[%clk 00:07:46]} {[%emt 00:00:07]} c4 {[%clk 00:31:17]} {[%emt 00:00:11]}
48. Kb7 {[%clk 00:07:40]} {[%emt 00:00:35]} c3 {[%clk 00:31:40]} {[%emt
00:00:07]} 49. Ka7 {[%clk 00:08:01]} {[%emt 00:00:10]} c2 {[%clk 00:32:05]}
{[%emt 00:00:05]} 50. Kb7 {[%clk 00:08:25]} {[%emt 00:00:06]} c1=Q {[%clk
00:32:25]} {[%emt 00:00:10]} 51. Ka8 {[%clk 00:07:06]} {[%emt 00:01:49]} Kc6
{[%clk 00:32:27]} {[%emt 00:00:28]} 52. Kb8 {[%clk 00:07:01]} {[%emt 00:00:36]}
Qa3 {[%clk 00:32:42]} {[%emt 00:00:15]} 53. Kc8 {[%clk 00:07:14]} {[%emt
00:00:16]} Qa8# {[%clk 00:32:40]} {[%emt 00:00:02]} 0-1

[Event "NJSK 2023 Meisjes B"]
[Site "Almelo, Netherlands"]
[Date "2023.05.05"]
[Round "6.1"]
[White "Oostinga, Elisa"]
[Black "Gergin, Isafara"]
[Result "0-1"]
[TimeControl "90min/40moves + 30min + 30sec/move"]
[WhiteElo "1034"]
[BlackElo "1762"]

1. e4 {[%clk 01:30:57]} {[%emt 00:00:02]} c5 {[%clk 01:30:57]} {[%emt
00:00:03]} 2. Nc3 {[%clk 01:31:20]} {[%emt 00:00:08]} Nc6 {[%clk 01:31:11]}
{[%emt 00:00:17]} 3. f4 {[%clk 01:31:34]} {[%emt 00:00:15]} g6 {[%clk
01:31:13]} {[%emt 00:00:28]} 4. Nf3 {[%clk 01:31:21]} {[%emt 00:00:42]} Bg7
{[%clk 01:31:04]} {[%emt 00:00:39]} 5. Bc4 {[%clk 01:28:14]} {[%emt 00:03:37]}
e6 {[%clk 01:30:43]} {[%emt 00:00:51]} 6. d3 {[%clk 01:23:18]} {[%emt
00:05:26]} Nge7 {[%clk 01:29:36]} {[%emt 00:01:37]} 7. Qe2 {[%clk 01:19:48]}
{[%emt 00:04:00]} O-O {[%clk 01:27:17]} {[%emt 00:02:49]} 8. O-O {[%clk
01:18:51]} {[%emt 00:01:27]} d5 {[%clk 01:20:29]} {[%emt 00:07:19]} 9. Bb3
{[%clk 01:11:30]} {[%emt 00:07:51]} Nd4 {[%clk 01:14:48]} {[%emt 00:06:11]} 10.
Nxd4 {[%clk 01:07:52]} {[%emt 00:04:08]} cxd4 {[%clk 01:13:52]} {[%emt
00:01:26]} 11. Nd1 {[%clk 01:07:13]} {[%emt 00:01:09]} dxe4 {[%clk 01:07:56]}
{[%emt 00:06:26]} 12. dxe4 {[%clk 01:02:27]} {[%emt 00:05:15]} b6 {[%clk
01:01:50]} {[%emt 00:06:36]} 13. Nf2 {[%clk 00:58:02]} {[%emt 00:04:55]} Bb7
{[%clk 00:58:27]} {[%emt 00:03:53]} 14. Bd2 {[%clk 00:52:15]} {[%emt 00:06:16]}
Qc7 {[%clk 00:54:05]} {[%emt 00:04:53]} 15. Rac1 {[%clk 00:49:45]} {[%emt
00:02:59]} Rfd8 {[%clk 00:45:46]} {[%emt 00:08:50]} 16. Kh1 {[%clk 00:31:58]}
{[%emt 00:18:17]} a5 {[%clk 00:34:09]} {[%emt 00:12:08]} 17. Rfd1 {[%clk
00:28:34]} {[%emt 00:03:54]} Qc6 {[%clk 00:27:52]} {[%emt 00:06:47]} 18. Bc4
{[%clk 00:22:21]} {[%emt 00:06:43]} Nc8 {[%clk 00:23:43]} {[%emt 00:04:39]} 19.
c3 {[%clk 00:16:46]} {[%emt 00:06:05]} Nd6 {[%clk 00:15:06]} {[%emt 00:09:08]}
20. Bd3 {[%clk 00:16:39]} {[%emt 00:00:36]} Qd7 {[%clk 00:11:45]} {[%emt
00:03:51]} 21. Re1 {[%clk 00:14:16]} {[%emt 00:02:54]} Rac8 {[%clk 00:10:12]}
{[%emt 00:02:03]} 22. c4 {[%clk 00:09:12]} {[%emt 00:05:34]} Qc6 {[%clk
00:07:13]} {[%emt 00:03:28]} 23. a3 {[%clk 00:05:58]} {[%emt 00:03:45]} a4
{[%clk 00:05:18]} {[%emt 00:02:25]} 24. Rc2 {[%clk 00:05:37]} {[%emt 00:00:50]}
Ba8 {[%clk 00:05:00]} {[%emt 00:00:48]} 25. Rb1 {[%clk 00:04:57]} {[%emt
00:01:11]} f5 {[%clk 00:04:21]} {[%emt 00:01:10]} 26. Re1 {[%clk 00:04:26]}
{[%emt 00:01:00]} Re8 {[%clk 00:04:27]} {[%emt 00:00:24]} 27. Bb4 {[%clk
00:03:13]} {[%emt 00:01:43]} Nb7 {[%clk 00:04:04]} {[%emt 00:00:53]} 28. Qf3
{[%clk 00:02:56]} {[%emt 00:00:47]} Nc5 {[%clk 00:04:08]} {[%emt 00:00:27]} 29.
Bxc5 {[%clk 00:02:40]} {[%emt 00:00:45]} bxc5 {[%clk 00:04:31]} {[%emt
00:00:07]} 30. Rce2 {[%clk 00:02:19]} {[%emt 00:00:51]} e5 {[%clk 00:03:29]}
{[%emt 00:01:33]} 31. fxe5 {[%clk 00:02:14]} {[%emt 00:00:35]} Bxe5 {[%clk
00:03:36]} {[%emt 00:00:23]} 32. Kg1 {[%clk 00:02:17]} {[%emt 00:00:27]} Bg7
{[%clk 00:03:36]} {[%emt 00:00:30]} 33. Qf4 {[%clk 00:02:07]} {[%emt 00:00:41]}
Rf8 {[%clk 00:02:36]} {[%emt 00:01:30]} 34. Nh3 {[%clk 00:01:53]} {[%emt
00:00:44]} fxe4 {[%clk 00:02:15]} {[%emt 00:00:50]} 35. Qxe4 {[%clk 00:02:12]}
{[%emt 00:00:11]} Qxe4 {[%clk 00:02:12]} {[%emt 00:00:33]} 36. Bxe4 {[%clk
00:02:35]} {[%emt 00:00:07]} Bxe4 {[%clk 00:02:16]} {[%emt 00:00:26]} 37. Rxe4
{[%clk 00:03:00]} {[%emt 00:00:05]} Rb8 {[%clk 00:02:18]} {[%emt 00:00:28]} 38.
R1e2 {[%clk 00:01:45]} {[%emt 00:01:44]} d3 {[%clk 00:02:17]} {[%emt 00:00:30]}
39. Rd2 {[%clk 00:02:04]} {[%emt 00:00:12]} Bd4+ {[%clk 00:02:29]} {[%emt
00:00:18]} 40. Nf2 {[%clk 00:01:49]} {[%emt 00:00:45]} Bxf2+ {[%clk 00:01:53]}
{[%emt 00:01:06]} 41. Rxf2 {[%clk 00:02:13]} {[%emt 00:00:06]} Rxf2 {[%clk
00:02:15]} {[%emt 00:00:07]} 42. Kxf2 {[%clk 00:02:08]} {[%emt 00:00:35]} Rxb2+
{[%clk 00:02:21]} {[%emt 00:00:25]} 43. Kf3 {[%clk 00:00:38]} {[%emt 00:01:59]}
d2 {[%clk 00:29:27]} {[%emt 00:03:25]} 44. Ke2 {[%clk 00:30:45]} {[%emt
00:00:23]} d1=Q+ {[%clk 00:29:21]} {[%emt 00:00:36]} 45. Kxd1 {[%clk 00:31:06]}
{[%emt 00:00:08]} Rxg2 {[%clk 00:29:42]} {[%emt 00:00:09]} 46. Re5 {[%clk
00:31:03]} {[%emt 00:00:33]} Rxh2 {[%clk 00:28:47]} {[%emt 00:01:26]} 47. Rxc5
{[%clk 00:31:05]} {[%emt 00:00:28]} Rh3 {[%clk 00:28:23]} {[%emt 00:00:53]} 48.
Rc8+ {[%clk 00:31:07]} {[%emt 00:00:28]} Kf7 {[%clk 00:28:38]} {[%emt
00:00:16]} 49. Rd8 {[%clk 00:28:01]} {[%emt 00:03:35]} h5 {[%clk 00:23:39]}
{[%emt 00:05:30]} 50. Kc2 {[%clk 00:27:38]} {[%emt 00:00:52]} Rxa3 {[%clk
00:21:23]} {[%emt 00:02:47]} 51. c5 {[%clk 00:27:00]} {[%emt 00:01:08]} Re3
{[%clk 00:19:42]} {[%emt 00:02:11]} 52. Rh8 {[%clk 00:22:23]} {[%emt 00:05:07]}
Re5 {[%clk 00:17:45]} {[%emt 00:02:26]} 53. Rc8 {[%clk 00:21:35]} {[%emt
00:01:18]} g5 {[%clk 00:15:54]} {[%emt 00:02:21]} 54. c6 {[%clk 00:21:07]}
{[%emt 00:00:59]} Rc5+ {[%clk 00:14:53]} {[%emt 00:01:31]} 55. Kb2 {[%clk
00:21:12]} {[%emt 00:00:25]} g4 {[%clk 00:14:45]} {[%emt 00:00:38]} 56. Ka3
{[%clk 00:20:30]} {[%emt 00:01:12]} g3 {[%clk 00:14:09]} {[%emt 00:01:06]} 57.
Rc7+ {[%clk 00:20:17]} {[%emt 00:00:44]} Kf6 {[%clk 00:12:31]} {[%emt
00:02:07]} 0-1

[Event "NJSK 2023 Meisjes B"]
[Site "Almelo, Netherlands"]
[Date "2023.05.05"]
[Round "6.2"]
[White "Ganeshram, Nirupa"]
[Black "Damen, Josephine"]
[Result "1-0"]
[TimeControl "90min/40moves + 30min + 30sec/move"]
[WhiteElo "1629"]
[BlackElo "1628"]

1. e4 {[%clk 01:30:59]} {[%emt 00:00:01]} e5 {[%clk 01:30:57]} {[%emt
00:00:05]} 2. Nf3 {[%clk 01:31:25]} {[%emt 00:00:03]} Nc6 {[%clk 01:31:22]}
{[%emt 00:00:04]} 3. Bc4 {[%clk 01:31:51]} {[%emt 00:00:03]} Nf6 {[%clk
01:31:47]} {[%emt 00:00:05]} 4. d4 {[%clk 01:32:18]} {[%emt 00:00:04]} exd4
{[%clk 01:32:08]} {[%emt 00:00:09]} 5. e5 {[%clk 01:32:41]} {[%emt 00:00:06]}
Ng4 {[%clk 01:32:12]} {[%emt 00:00:25]} 6. O-O {[%clk 01:32:52]} {[%emt
00:00:20]} d6 {[%clk 01:32:30]} {[%emt 00:00:12]} 7. exd6 {[%clk 01:32:37]}
{[%emt 00:00:45]} Qxd6 {[%clk 01:32:28]} {[%emt 00:00:31]} 8. Re1+ {[%clk
01:29:41]} {[%emt 00:03:26]} Be7 {[%clk 01:31:09]} {[%emt 00:01:49]} 9. Nbd2
{[%clk 01:21:00]} {[%emt 00:09:11]} O-O {[%clk 01:19:22]} {[%emt 00:12:16]} 10.
Ne4 {[%clk 01:13:50]} {[%emt 00:07:41]} Qg6 {[%clk 00:58:32]} {[%emt 00:21:19]}
11. Ng3 {[%clk 01:05:06]} {[%emt 00:09:14]} Bd6 {[%clk 00:43:54]} {[%emt
00:15:09]} 12. Bd3 {[%clk 00:56:31]} {[%emt 00:09:04]} f5 {[%clk 00:42:38]}
{[%emt 00:01:46]} 13. Nh4 {[%clk 00:40:25]} {[%emt 00:16:35]} Qf6 {[%clk
00:36:24]} {[%emt 00:06:44]} 14. Nf3 {[%clk 00:28:09]} {[%emt 00:12:46]} Nce5
{[%clk 00:29:50]} {[%emt 00:07:04]} 15. Nxe5 {[%clk 00:15:56]} {[%emt
00:12:44]} Bxe5 {[%clk 00:17:41]} {[%emt 00:12:39]} 16. Qf3 {[%clk 00:13:43]}
{[%emt 00:02:43]} Bd7 {[%clk 00:13:22]} {[%emt 00:04:49]} 17. Bc4+ {[%clk
00:11:46]} {[%emt 00:02:27]} Kh8 {[%clk 00:12:50]} {[%emt 00:01:02]} 18. Bf4
{[%clk 00:11:24]} {[%emt 00:00:51]} Nxh2 {[%clk 00:09:28]} {[%emt 00:03:52]} 19.
Kxh2 {[%clk 00:07:23]} {[%emt 00:04:31]} Qh4+ {[%clk 00:09:48]} {[%emt
00:00:10]} 20. Kg1 {[%clk 00:07:49]} {[%emt 00:00:03]} Bxf4 {[%clk 00:09:25]}
{[%emt 00:00:53]} 21. Ne2 {[%clk 00:06:46]} {[%emt 00:01:34]} Qh2+ {[%clk
00:05:53]} {[%emt 00:04:01]} 22. Kf1 {[%clk 00:07:12]} {[%emt 00:00:04]} Qh1+
{[%clk 00:05:58]} {[%emt 00:00:25]} 23. Ng1 {[%clk 00:07:28]} {[%emt 00:00:13]}
Bh2 {[%clk 00:05:35]} {[%emt 00:00:53]} 24. Ke2 {[%clk 00:07:19]} {[%emt
00:00:40]} Rae8+ {[%clk 00:05:45]} {[%emt 00:00:20]} 25. Kd3 {[%clk 00:07:00]}
{[%emt 00:00:49]} Rxe1 {[%clk 00:05:32]} {[%emt 00:00:42]} 26. Rxe1 {[%clk
00:07:25]} {[%emt 00:00:05]} Bxg1 {[%clk 00:04:20]} {[%emt 00:01:43]} 27. Qg3
{[%clk 00:04:13]} {[%emt 00:03:42]} f4 {[%clk 00:02:57]} {[%emt 00:01:52]} 28.
Qg5 {[%clk 00:04:18]} {[%emt 00:00:25]} Bf5+ {[%clk 00:02:20]} {[%emt
00:01:07]} 29. Qxf5 {[%clk 00:04:34]} {[%emt 00:00:13]} Ra8 {[%clk 00:02:08]}
{[%emt 00:00:43]} 30. Qd7 {[%clk 00:04:01]} {[%emt 00:01:03]} g6 {[%clk
00:01:38]} {[%emt 00:01:01]} 31. Qxd4# {[%clk 00:04:21]} {[%emt 00:00:09]} 1-0

[Event "NJSK 2023 Meisjes B"]
[Site "Almelo, Netherlands"]
[Date "2023.05.05"]
[Round "6.3"]
[White "Feng, Elysia"]
[Black "Verheij, Dana"]
[Result "1-0"]
[TimeControl "90min/40moves + 30min + 30sec/move"]
[WhiteElo "1697"]
[BlackElo "1846"]

1. e4 {[%clk 01:30:58]} {[%emt 00:00:02]} c5 {[%clk 01:30:57]} {[%emt
00:00:04]} 2. Nf3 {[%clk 01:31:25]} {[%emt 00:00:03]} d6 {[%clk 01:31:20]}
{[%emt 00:00:07]} 3. d4 {[%clk 01:31:51]} {[%emt 00:00:04]} cxd4 {[%clk
01:31:47]} {[%emt 00:00:03]} 4. Nxd4 {[%clk 01:32:17]} {[%emt 00:00:07]} Nf6
{[%clk 01:32:13]} {[%emt 00:00:02]} 5. Nc3 {[%clk 01:32:42]} {[%emt 00:00:04]}
a6 {[%clk 01:32:42]} {[%emt 00:00:02]} 6. Be3 {[%clk 01:33:07]} {[%emt
00:00:05]} e5 {[%clk 01:33:00]} {[%emt 00:00:11]} 7. Nb3 {[%clk 01:33:32]}
{[%emt 00:00:05]} Be7 {[%clk 01:33:24]} {[%emt 00:00:07]} 8. f3 {[%clk
01:33:57]} {[%emt 00:00:04]} Be6 {[%clk 01:33:18]} {[%emt 00:00:36]} 9. Qd2
{[%clk 01:34:23]} {[%emt 00:00:05]} h5 {[%clk 01:33:39]} {[%emt 00:00:08]} 10.
O-O-O {[%clk 01:34:47]} {[%emt 00:00:06]} Nbd7 {[%clk 01:34:04]} {[%emt
00:00:06]} 11. Kb1 {[%clk 01:35:05]} {[%emt 00:00:11]} Rc8 {[%clk 01:31:14]}
{[%emt 00:03:21]} 12. h3 {[%clk 01:35:00]} {[%emt 00:00:34]} h4 {[%clk
01:30:53]} {[%emt 00:00:52]} 13. Bd3 {[%clk 01:32:42]} {[%emt 00:02:47]} b5
{[%clk 01:28:50]} {[%emt 00:02:34]} 14. Rhe1 {[%clk 01:29:32]} {[%emt
00:03:40]} Nb6 {[%clk 01:14:33]} {[%emt 00:14:48]} 15. Bxb6 {[%clk 01:25:13]}
{[%emt 00:04:47]} Qxb6 {[%clk 01:14:59]} {[%emt 00:00:05]} 16. f4 {[%clk
01:16:17]} {[%emt 00:09:26]} exf4 {[%clk 01:11:02]} {[%emt 00:04:27]} 17. Qxf4
{[%clk 01:16:02]} {[%emt 00:00:44]} Kf8 {[%clk 00:47:42]} {[%emt 00:23:51]} 18.
Nd5 {[%clk 00:53:55]} {[%emt 00:22:37]} Nxd5 {[%clk 00:38:24]} {[%emt
00:09:48]} 19. exd5 {[%clk 00:54:22]} {[%emt 00:00:02]} Bxd5 {[%clk 00:37:40]}
{[%emt 00:01:15]} 20. Bg6 {[%clk 00:34:05]} {[%emt 00:20:47]} Rh6 {[%clk
00:18:03]} {[%emt 00:20:06]} 21. Rxd5 {[%clk 00:30:41]} {[%emt 00:03:54]} Rxg6
{[%clk 00:18:17]} {[%emt 00:00:17]} 22. Rh5 {[%clk 00:30:52]} {[%emt 00:00:19]}
Rh6 {[%clk 00:05:31]} {[%emt 00:13:16]} 23. Rxh6 {[%clk 00:30:49]} {[%emt
00:00:33]} gxh6 {[%clk 00:05:59]} {[%emt 00:00:01]} 24. Qxh6+ {[%clk 00:31:12]}
{[%emt 00:00:08]} Ke8 {[%clk 00:06:08]} {[%emt 00:00:20]} 25. Qh8+ {[%clk
00:31:33]} {[%emt 00:00:10]} Kd7 {[%clk 00:06:35]} {[%emt 00:00:04]} 26. Rxe7+
{[%clk 00:31:58]} {[%emt 00:00:05]} Kxe7 {[%clk 00:07:02]} {[%emt 00:00:03]} 27.
Qxc8 {[%clk 00:32:21]} {[%emt 00:00:06]} Qg1+ {[%clk 00:07:20]} {[%emt
00:00:12]} 28. Nc1 {[%clk 00:32:48]} {[%emt 00:00:03]} Qxg2 {[%clk 00:07:13]}
{[%emt 00:00:38]} 29. Qf5 {[%clk 00:27:25]} {[%emt 00:05:53]} Qg3 {[%clk
00:06:08]} {[%emt 00:01:34]} 30. Qd3 {[%clk 00:23:43]} {[%emt 00:04:13]} Qe1
{[%clk 00:04:27]} {[%emt 00:02:10]} 31. Qe2+ {[%clk 00:24:03]} {[%emt
00:00:11]} Qxe2 {[%clk 00:04:48]} {[%emt 00:00:09]} 32. Nxe2 {[%clk 00:24:32]}
{[%emt 00:00:01]} Ke6 {[%clk 00:04:50]} {[%emt 00:00:28]} 33. Nf4+ {[%clk
00:23:32]} {[%emt 00:01:31]} Kf5 {[%clk 00:05:06]} {[%emt 00:00:13]} 34. Ng2
{[%clk 00:23:59]} {[%emt 00:00:03]} Kg5 {[%clk 00:05:28]} {[%emt 00:00:08]} 35.
Kc1 {[%clk 00:24:25]} {[%emt 00:00:04]} f5 {[%clk 00:03:23]} {[%emt 00:02:35]}
36. Kd2 {[%clk 00:24:50]} {[%emt 00:00:05]} a5 {[%clk 00:03:34]} {[%emt
00:00:19]} 37. Ke3 {[%clk 00:25:12]} {[%emt 00:00:07]} b4 {[%clk 00:03:18]}
{[%emt 00:00:47]} 38. Kf3 {[%clk 00:25:05]} {[%emt 00:00:37]} d5 {[%clk
00:02:54]} {[%emt 00:00:54]} 39. Ne3 {[%clk 00:25:23]} {[%emt 00:00:12]} d4
{[%clk 00:02:56]} {[%emt 00:00:29]} 40. Nc4 {[%clk 00:25:48]} {[%emt 00:00:05]}
a4 {[%clk 00:03:13]} {[%emt 00:00:13]} 41. Nb6 {[%clk 00:26:13]} {[%emt
00:00:04]} b3 {[%clk 00:02:09]} {[%emt 00:01:33]} 42. axb3 {[%clk 00:25:34]}
{[%emt 00:01:09]} axb3 {[%clk 00:02:30]} {[%emt 00:00:09]} 43. cxb3 {[%clk
00:26:02]} {[%emt 00:00:03]} Kf6 {[%clk 00:29:15]} {[%emt 00:03:45]} 44. Nc4
{[%clk 00:55:46]} {[%emt 00:00:45]} Ke6 {[%clk 00:29:08]} {[%emt 00:00:37]} 45.
b4 {[%clk 00:55:00]} {[%emt 00:01:17]} Kd5 {[%clk 00:27:47]} {[%emt 00:01:51]}
46. b5 {[%clk 00:55:05]} {[%emt 00:00:25]} Kxc4 {[%clk 00:17:27]} {[%emt
00:10:49]} 47. b6 {[%clk 00:55:00]} {[%emt 00:00:35]} d3 {[%clk 00:16:53]}
{[%emt 00:01:04]} 48. b7 {[%clk 00:55:26]} {[%emt 00:00:04]} Kb3 {[%clk
00:13:49]} {[%emt 00:03:34]} 49. b8=Q+ {[%clk 00:55:43]} {[%emt 00:00:13]} Kc2
{[%clk 00:14:16]} {[%emt 00:00:03]} 50. Qc7+ {[%clk 00:55:56]} {[%emt
00:00:17]} Kd2 {[%clk 00:14:04]} {[%emt 00:00:42]} 51. Qc3+ {[%clk 00:56:10]}
{[%emt 00:00:16]} Kd1 {[%clk 00:14:22]} {[%emt 00:00:12]} 52. Qxd3+ {[%clk
00:56:34]} {[%emt 00:00:06]} 1-0